bitfinex-derivatives/quotes_ETHF0:USTF0_20250212
["timestamp","ask_amount","ask_price","bid_price","bid_amount"]
[1739385069146,0.94244186,2655.0,2653.5,1.798]
[1739385069147,0.75353,2654.1,2653.5,3.2078]
[1739385069342,0.75353,2654.1,2653.6,1.1743]
[1739385070043,2.3705,2654.2,2653.6,1.1743]
[1739385070245,0.00565654,2654.1,2654.0,0.75353]
[1739385070544,0.75358,2653.9,2653.7,0.75361]
[1739385070848,3.96136,2654.0,2653.7,0.75361]
[1739385071040,3.2078,2654.0,2653.6,1.17995654]
[1739385071349,3.2078,2654.0,2653.6,0.00565654]
[1739385071839,3.89722702,2653.9,2653.6,0.00565654]
[1739385072144,3.96143,2653.7,2653.6,0.00565654]
[1739385072441,5.75943,2653.7,2653.6,0.00565654]
[1739385072641,11.0058,2653.7,2652.9,1.1687]
[1739385072838,3.2078,2653.0,2652.2,1.1689]
[1739385073037,3.2078,2652.7,2652.4,0.75398]
[1739385073236,3.96171,2652.7,2652.4,0.75398]
[1739385073738,3.2078,2652.7,2652.4,0.75398]
[1739385074137,3.96171,2652.7,2652.4,0.75398]
[1739385074441,3.89722702,2652.6,2652.3,0.00565654]
[1739385074634,3.9618,2652.4,2652.3,0.00565654]
[1739385074834,0.75407,2652.2,2651.7,0.75417]
[1739385075039,0.75407,2652.2,2651.6,3.2078]
[1739385075240,0.75407,2652.2,2651.7,0.75419]
[1739385075744,0.75407,2652.2,2651.6,3.2078]
[1739385076037,0.75407,2652.2,2651.7,0.75983654]
[1739385076345,0.75415,2651.9,2651.7,0.00565654]
[1739385076640,1.798,2651.8,2651.7,0.00565654]
[1739385077445,0.75406,2652.2,2651.8,0.75416]
[1739385077740,2.55308,2652.1,2651.7,0.75983654]
[1739385078136,1.799,2652.1,2651.7,0.00565654]
[1739385078437,5.0068,2652.1,2651.7,0.00565654]
[1739385078643,0.75413,2652.0,2651.7,0.00565654]
[1739385078942,3.89722702,2652.0,2651.7,0.00565654]
[1739385079138,3.96197,2651.8,2651.7,0.00565654]
[1739385081941,3.96197,2651.8,2650.5,1.799]
[1739385081942,0.75438,2651.1,2650.8,0.75443]
[1739385082245,3.2078,2650.9,2650.2,3.2078]
[1739385082447,0.75446,2650.8,2650.5,0.75453]
[1739385082743,5.0068,2650.9,2650.2,3.8038]
[1739385082944,0.75449,2650.7,2650.4,0.75455]
[1739385083142,0.75455,2650.5,2650.2,0.596]
[1739385083441,3.2078,2650.6,2650.2,0.596]
[1739385083950,7.10502702,2650.6,2650.0,0.5957]
[1739385084247,0.75465,2650.1,2649.8,3.96252]
[1739385084743,0.75464,2650.2,2649.9,0.75469]
[1739385085349,1.799,2650.3,2649.9,0.75469]
[1739385085542,0.75465,2650.1,2649.9,0.75469]
[1739385086043,0.75465,2650.1,2649.8,3.96251]
[1739385086246,0.75465,2650.1,2649.7,0.596]
[1739385086247,3.2078,2650.2,2649.7,1.35075]
[1739385086546,3.2078,2650.2,2649.7,0.596]
[1739385086742,3.96244,2650.2,2649.7,0.596]
[1739385086943,0.75468,2650.0,2649.8,0.75472]
[1739385087151,0.75471,2649.9,2649.7,1.35075]
[1739385087441,3.2078,2650.2,2649.7,0.596]
[1739385087649,2.55457,2650.4,2650.2,0.75459]
[1739385088444,1.8,2650.4,2650.3,0.75459]
[1739385088750,1.8,2650.5,2650.2,3.2078]
[1739385089046,3.21345654,2650.8,2650.6,0.75451]
[1739385089047,3.96791654,2650.8,2650.6,0.75451]
[1739385089250,0.00565654,2650.8,2650.7,0.75448]
[1739385090146,0.75449,2650.7,2650.6,0.7545]
[1739385090648,0.00565654,2650.8,2650.3,0.5958]
[1739385090852,0.00565654,2650.8,2650.7,4.65170702]
[1739385091049,0.00565654,2650.8,2650.7,0.75448]
[1739385094948,3.2078,2651.4,2650.7,10.65170702]
[1739385095154,0.5482,2651.9,2651.0,3.2078]
[1739385095355,1.8,2652.1,2652.0,0.7541]
[1739385095853,2.55408,2652.1,2652.0,0.7541]
[1739385096251,0.75412,2652.0,2651.9,0.75411]
[1739385096652,5.0078,2652.1,2651.8,0.00565654]
[1739385096849,1.8,2652.1,2652.0,0.75411]
[1739385097052,0.75406,2652.2,2652.1,0.75408]
[1739385097750,3.2078,2652.2,2651.8,0.00565654]
[1739385097952,0.75414,2651.9,2651.8,0.75981654]
[1739385098253,3.96194,2651.9,2651.8,0.00565654]
[1739385098455,7.85916702,2651.9,2651.8,0.00565654]
[1739385099065,13.10502702,2651.9,2651.1,3.2078]
[1739385099263,0.75427,2651.5,2651.3,0.75429]
[1739385099467,0.75432,2651.3,2650.8,5.65897]
[1739385099663,3.2078,2650.9,2650.8,0.5651]
[1739385099864,3.96224,2650.9,2650.7,0.75447]
[1739385100159,3.96224,2650.9,2650.3,1.1327]
[1739385100160,5.0078,2650.9,2650.3,1.1327]
[1739385100465,3.2078,2650.6,2649.9,3.2078]
[1739385100667,3.96233,2650.6,2650.4,0.75456]
[1739385100963,3.2078,2650.6,2650.4,0.75454]
[1739385101265,3.2078,2650.6,2649.9,5.09455]
[1739385101460,3.96233,2650.6,2649.9,5.09455]
[1739385102068,3.96232,2650.6,2649.9,5.09455]
[1739385102459,3.2078,2650.9,2650.4,3.2078]
[1739385102660,0.00565654,2651.1,2650.5,3.89722702]
[1739385102863,3.96783654,2651.1,2650.8,0.75444]
[1739385103063,5.76783654,2651.1,2650.8,0.75444]
[1739385103761,5.01345654,2651.1,2650.5,3.89722702]
[1739385104162,5.01345654,2651.1,2650.9,0.75442]
[1739385104360,5.01345654,2651.1,2650.8,0.75444]
[1739385104671,5.76783654,2651.1,2650.8,0.75444]
[1739385104862,5.76783654,2651.1,2650.9,0.75442]
[1739385105168,5.76783654,2651.1,2650.5,3.89722702]
[1739385105469,0.75439,2651.0,2650.8,0.75443]
[1739385106271,5.01345654,2651.1,2650.8,0.75443]
[1739385106471,5.76782654,2651.1,2650.8,0.75443]
[1739385106769,5.01345654,2651.1,2650.8,0.75443]
[1739385106973,5.76783654,2651.1,2650.5,3.89722702]
[1739385107470,5.76783654,2651.1,2650.9,0.75441]
[1739385107471,5.01345654,2651.1,2650.9,0.75441]
[1739385107668,5.01345654,2651.1,2650.5,3.89722702]
[1739385107669,3.21345654,2651.1,2651.0,0.75439]
[1739385108060,3.21345654,2651.1,2650.4,5.69017]
[1739385108061,3.96782654,2651.1,2650.4,5.69017]
[1739385108373,0.75439,2651.0,2650.8,0.75444]
[1739385108571,3.96783654,2651.1,2650.8,0.75444]
[1739385108876,0.7544,2651.0,2650.8,0.75444]
[1739385109069,3.21345654,2651.1,2650.4,5.09417]
[1739385109370,3.21345654,2651.1,2650.9,0.75441]
[1739385109371,3.96783654,2651.1,2650.9,0.75441]
[1739385109571,3.21345654,2651.1,2651.0,0.75439]
[1739385110572,0.00565654,2651.1,2651.0,0.75439]
[1739385111064,3.21345654,2651.1,2651.0,0.75439]
[1739385111974,3.21345654,2651.1,2650.7,0.75447]
[1739385112170,3.21345654,2651.1,2650.3,0.5569]
[1739385112372,0.75444,2650.9,2650.3,0.5569]
[1739385112677,3.2078,2650.8,2650.7,0.75448]
[1739385112880,3.96225,2650.8,2650.6,0.7545]
[1739385113272,3.2078,2650.8,2650.3,0.5569]
[1739385113473,3.96226,2650.8,2650.6,0.75451]
[1739385114174,3.96227,2650.8,2650.6,0.75449]
[1739385114480,0.75449,2650.7,2650.5,0.75452]
[1739385114672,0.75451,2650.6,2650.5,0.75454]
[1739385115182,3.2078,2650.8,2650.3,0.5569]
[1739385115569,3.2078,2650.8,2650.7,0.75448]
[1739385116378,5.0078,2650.8,2650.7,0.75448]
[1739385116778,3.2078,2650.8,2650.7,0.75448]
[1739385116967,0.00565654,2651.1,2651.0,0.75439]
[1739385121474,0.75434,2651.2,2651.1,0.00105815]
[1739385121675,0.75434,2651.2,2651.1,0.75541815]
[1739385121872,3.58517896,2651.5,2651.1,0.00105815]
[1739385122083,2.55429,2651.4,2651.3,0.75428]
[1739385122577,3.2078,2652.8,2651.3,13.29295451]
[1739385122774,3.2078,2652.6,2652.3,0.75401]
[1739385123168,3.96175,2652.6,2652.0,3.89722702]
[1739385123373,3.2078,2652.6,2652.2,0.00565654]
[1739385123580,0.00565654,2652.7,2652.6,0.75394]
[1739385123976,0.00565654,2652.7,2652.6,7.85896702]
[1739385124173,6.54e-06,2652.7,2652.6,13.85896702]
[1739385124378,0.37773658,2653.0,2652.9,0.75385]
[1739385124682,0.5886,2653.5,2653.4,0.75371]
[1739385125181,3.2078,2653.7,2653.5,0.75367]
[1739385125479,3.21345654,2653.7,2653.6,0.75365]
[1739385126176,3.21345654,2653.7,2653.5,0.75367]
[1739385126770,3.21345654,2653.7,2653.0,0.5666]
[1739385127171,3.21345654,2653.7,2653.5,0.75368]
[1739385127374,3.21345654,2653.7,2653.0,0.5666]
[1739385127579,3.21345654,2653.7,2653.5,0.75366]
[1739385127781,3.21345654,2653.7,2653.4,0.75369]
[1739385127979,3.21345654,2653.7,2653.5,0.75367]
[1739385130083,3.21345654,2653.7,2652.9,7.10502702]
[1739385130379,5.0098,2653.6,2652.9,7.10502702]
[1739385130584,5.0098,2653.6,2653.5,0.75368]
[1739385133284,3.2078,2653.6,2653.5,0.75368]
[1739385137282,0.00565654,2653.7,2653.6,0.75365]
[1739385142094,0.75929654,2653.7,2653.6,0.75365]
[1739385142499,0.00565654,2653.7,2653.6,0.75365]
[1739385143192,0.00565654,2653.7,2653.4,3.2078]
[1739385143398,0.75367,2653.6,2653.5,0.75365]
[1739385143698,0.75930654,2653.7,2653.6,0.75365]
[1739385144092,0.00565654,2653.7,2653.6,0.75365]
[1739385146001,0.00565654,2653.7,2653.3,0.5844]
[1739385146196,0.75369,2653.6,2653.5,0.75366]
[1739385146397,0.75929654,2653.7,2653.6,0.75365]
[1739385147406,0.00565654,2653.7,2653.6,0.75365]
[1739385152005,0.75928654,2653.7,2653.6,0.75365]
[1739385152204,0.7537,2653.5,2653.4,0.75368]
[1739385153297,0.00565654,2653.7,2653.3,3.2078]
[1739385153497,0.00565654,2653.7,2653.5,0.75366]
[1739385153498,0.75367,2653.6,2653.5,0.75366]
[1739385153794,0.00565654,2653.7,2653.5,0.75366]
[1739385153999,1.798,2653.6,2653.3,5.09214]
[1739385154199,2.55166,2653.6,2653.5,0.75368]
[1739385154911,1.798,2653.6,2653.5,0.75368]
[1739385155500,1.798,2653.6,2653.5,4.65090702]
[1739385156106,2.55165,2653.6,2653.5,4.65090702]
[1739385157105,2.55165,2653.6,2653.5,0.75368]
[1739385158302,1.798,2653.6,2653.3,3.2078]
[1739385158509,0.75371,2653.5,2653.4,0.75369]
[1739385159009,2.55169,2653.6,2653.5,0.75368]
[1739385159197,2.55169,2653.6,2653.5,4.65090702]
[1739385159707,2.55169,2653.6,2653.5,4.1060125]
[1739385160809,2.55165,2653.6,2653.5,4.1060125]
[1739385161017,2.55165,2653.6,2653.5,3.3523325]
[1739385161310,8.37521421,2653.6,2652.9,3.3523325]
[1739385161500,0.75382,2653.0,2652.9,3.3523325]
[1739385162107,1.88465,2652.9,2652.6,3.3523325]
[1739385162415,3.2078,2652.7,2652.3,3.3523325]
[1739385162604,0.75397,2652.5,2652.3,4.1063425]
[1739385162805,0.75397,2652.5,2652.3,0.75401]
[1739385163004,0.754,2652.4,2652.2,0.00565654]
[1739385163199,0.75402,2652.3,2652.2,0.00565654]
[1739385163404,1.30992,2652.3,2652.2,0.00565654]
[1739385164607,2.3539,2652.3,2652.2,0.75970654]
[1739385164808,3.10792,2652.3,2652.2,0.00565654]
[1739385165005,2.3539,2652.3,2652.2,0.00565654]
[1739385165310,3.10792,2652.3,2652.2,0.00565654]
[1739385166412,2.3539,2652.3,2652.2,0.75970654]
[1739385166612,3.10792,2652.3,2652.2,0.00565654]
[1739385166815,2.3539,2652.3,2652.2,0.75970654]
[1739385168917,1.798,2652.5,2652.2,0.00565654]
[1739385169116,1.798,2652.5,2652.4,0.75399]
[1739385169921,2.55197,2652.5,2652.4,0.75399]
[1739385170619,3.2078,2652.8,2652.2,0.55935654]
[1739385170805,0.6059,2653.0,2652.3,5.790666]
[1739385171007,0.6059,2653.0,2652.9,0.75385]
[1739385171209,2.4039,2653.0,2652.4,3.2078]
[1739385171414,0.75392,2652.7,2652.4,3.2078]
[1739385171716,0.75393,2652.7,2652.6,0.75393]
[1739385171916,0.75393,2652.7,2652.2,2.44446654]
[1739385172115,0.75393,2652.7,2652.5,0.75395]
[1739385172310,0.75394,2652.6,2652.5,0.75395]
[1739385172717,0.75396,2652.6,2652.2,0.55935654]
[1739385172917,1.798,2652.5,2652.2,0.55935654]
[1739385173421,1.798,2652.5,2652.4,0.75399]
[1739385174018,1.798,2652.5,2652.2,0.55935654]
[1739385174220,0.75402,2652.4,2652.3,0.754]
[1739385174415,2.55198,2652.5,2652.4,0.75399]
[1739385174718,1.798,2652.5,2652.4,0.75399]
[1739385175113,5.0058,2652.8,2652.2,0.55935654]
[1739385175320,0.75393,2652.7,2652.6,0.75392]
[1739385176119,5.0058,2652.8,2652.2,0.55935654]
[1739385176322,1.88478,2652.7,2652.3,0.75402]
[1739385176517,6.89053,2652.8,2652.2,0.55935654]
[1739385176923,0.75398,2652.5,2652.4,0.75399]
[1739385177123,0.754,2652.4,2652.3,0.754]
[1739385177313,0.75399,2652.5,2652.4,0.75398]
[1739385177621,6.89053,2652.8,2652.3,0.754]
[1739385177622,0.75401,2652.4,2652.3,0.754]
[1739385177822,0.75399,2652.5,2652.4,0.75399]
[1739385178625,0.75398,2652.5,2652.4,0.75398]
[1739385179023,5.0058,2652.8,2652.2,0.55935654]
[1739385179323,0.75398,2652.5,2652.4,0.75398]
[1739385180318,0.75402,2652.3,2652.2,1.31338654]
[1739385180628,5.0058,2652.8,2652.2,0.55935654]
[1739385180819,3.2078,2652.8,2652.2,0.55935654]
[1739385181121,3.2078,2652.5,2652.2,0.55935654]
[1739385181426,0.75402,2652.3,2652.2,0.75970654]
[1739385182028,0.75391,2652.7,2652.6,0.75392]
[1739385182323,2.55191,2652.7,2652.2,1.89077654]
[1739385182523,0.75395,2652.6,2652.5,0.75394]
[1739385182924,1.798,2652.7,2652.2,1.89077654]
[1739385183124,1.798,2652.7,2652.2,0.00565654]
[1739385183327,0.75402,2652.3,2652.2,0.75968654]
[1739385185222,0.75402,2652.3,2652.2,0.00565654]
[1739385186121,0.75402,2652.3,2651.4,3.2078]
[1739385186122,0.75423,2651.6,2651.4,3.2078]
[1739385186321,0.75429,2651.4,2651.2,1.93262]
[1739385186525,0.75429,2651.4,2651.2,1.32822]
[1739385186724,3.2078,2651.4,2651.1,0.00105815]
[1739385186927,0.75434,2651.2,2651.1,0.00105815]
[1739385189235,1.798,2651.3,2651.1,0.00105815]
[1739385189434,1.798,2651.3,2651.1,0.75540815]
[1739385189626,2.55232,2651.3,2651.1,0.00105815]
[1739385190332,2.55233,2651.3,2651.1,0.00105815]
[1739385190533,3.21345654,2651.4,2651.1,0.75541815]
[1739385190728,1.80465654,2651.4,2651.1,3.90914663]
[1739385190933,0.00565654,2651.4,2651.3,0.75431]
[1739385191134,0.00565654,2651.4,2651.3,3.96211]
[1739385191427,19.749,2652.1,2651.3,3.96211]
[1739385191428,0.75411,2652.0,2651.8,0.75415]
[1739385191625,2.55309,2652.1,2651.9,0.75412]
[1739385191828,2.3555,2652.5,2651.7,3.90808848]
[1739385192021,0.754,2652.4,2652.3,0.75402]
[1739385192226,2.3555,2652.5,2652.0,3.90808848]
[1739385192530,2.3555,2652.5,2652.2,0.75403]
[1739385192531,0.75401,2652.4,2652.2,0.75403]
[1739385192827,1.799,2652.4,2651.9,3.2078]
[1739385193029,0.75406,2652.2,2652.0,0.75411]
[1739385193229,0.75406,2652.2,2652.1,0.75408]
[1739385193431,0.75403,2652.3,2651.9,3.2078]
[1739385193634,1.799,2652.4,2652.2,0.75404]
[1739385193826,0.75404,2652.3,2652.2,0.75404]
[1739385194028,0.75404,2652.3,2651.9,3.2078]
[1739385194227,1.799,2652.4,2651.9,3.2078]
[1739385194429,2.55301,2652.4,2652.2,0.75403]
[1739385195324,1.799,2652.4,2652.2,0.75403]
[1739385195520,1.799,2652.4,2651.9,3.2078]
[1739385195727,0.75415,2651.9,2651.7,0.75418]
[1739385196229,0.75407,2652.2,2652.0,0.7541]
[1739385196431,1.799,2652.4,2651.8,3.7841]
[1739385196626,0.75404,2652.3,2652.1,0.75407]
[1739385196827,1.799,2652.4,2652.1,0.75405]
[1739385197027,0.75405,2652.2,2652.1,0.75405]
[1739385197324,1.799,2652.4,2652.2,0.75403]
[1739385197529,0.75402,2652.3,2652.2,0.75403]
[1739385197727,1.799,2652.4,2652.2,0.75403]
[1739385197930,3.7643,2652.5,2652.3,0.75402]
[1739385198123,1.798,2652.4,2652.3,0.75402]
[1739385198922,0.5565,2652.5,2652.1,3.2078]
[1739385199126,0.5565,2652.5,2652.3,0.75401]
[1739385199127,0.75401,2652.4,2652.3,0.75401]
[1739385200737,0.75401,2652.4,2651.9,1.88535]
[1739385200738,0.75404,2652.3,2652.2,0.75404]
[1739385200938,0.75401,2652.4,2652.3,0.754]
[1739385201237,1.80365654,2652.6,2652.5,0.75397]
[1739385202738,2.55759654,2652.6,2652.5,0.75397]
[1739385203529,0.75959654,2652.6,2652.5,0.75397]
[1739385203739,0.00565654,2652.6,2652.5,0.75397]
[1739385204444,0.75959654,2652.6,2652.5,0.75397]
[1739385204634,0.00565654,2652.6,2652.5,0.75397]
[1739385208141,3.96152,2653.4,2653.3,0.75374]
[1739385208338,5.75952,2653.4,2653.3,0.75374]
[1739385208940,0.75375,2653.3,2653.1,0.5884]
[1739385209141,3.2078,2653.4,2653.1,0.5884]
[1739385209647,0.75375,2653.3,2653.2,0.75374]
[1739385209947,0.75382,2653.1,2653.0,0.75381]
[1739385210538,2.55179,2653.2,2653.1,0.7538]
[1739385211343,1.798,2653.2,2652.6,3.7732]
[1739385211543,1.1945,2653.1,2652.6,3.7732]
[1739385211740,0.75388,2652.9,2652.8,0.75387]
[1739385213451,0.75388,2652.9,2652.8,4.10845846]
[1739385213646,0.75385,2653.0,2652.9,0.75382]
[1739385215048,0.5951,2653.1,2652.8,3.35458846]
[1739385215251,0.5951,2653.1,2653.0,0.75382]
[1739385215542,0.75935654,2653.5,2653.1,0.7538]
[1739385215750,0.75935654,2653.5,2653.4,0.75371]
[1739385216251,0.00565654,2653.5,2653.4,0.75371]
[1739385217353,0.75933654,2653.5,2653.4,0.75371]
[1739385217545,0.00565654,2653.5,2653.2,3.7859]
[1739385217749,0.75373,2653.4,2653.3,0.75371]
[1739385217951,0.00565654,2653.5,2653.2,3.96156]
[1739385217952,0.75374,2653.3,2653.2,3.96156]
[1739385218248,0.75374,2653.3,2653.2,3.2078]
[1739385218446,0.75374,2653.3,2652.8,4.10846846]
[1739385218447,0.75385,2652.9,2652.8,4.10846846]
[1739385220051,2.55084,2653.0,2652.9,0.75385]
[1739385220351,2.55079,2653.2,2653.1,0.75376]
[1739385221655,0.75372,2653.4,2653.3,0.75374]
[1739385221843,0.75936654,2653.5,2653.4,0.75371]
[1739385222054,0.00565654,2653.5,2653.1,3.35458846]
[1739385222359,0.7538,2653.1,2653.0,0.75381]
[1739385222566,0.7538,2653.1,2652.8,3.35458846]
[1739385222567,0.75385,2653.0,2652.9,0.75382]
[1739385222760,3.68144,2653.2,2652.8,3.35458846]
[1739385222964,3.68144,2653.2,2652.7,0.5781]
[1739385223165,0.75388,2652.8,2652.7,1.33199]
[1739385223370,0.75388,2652.8,2652.7,0.5781]
[1739385223568,0.75388,2652.8,2652.7,1.33201]
[1739385224470,0.75385,2653.0,2652.9,0.75382]
[1739385225559,1.797,2653.2,2652.8,3.35458846]
[1739385225868,0.75381,2653.1,2653.0,0.7538]
[1739385226768,0.75385,2653.0,2652.9,0.75383]
[1739385227665,3.2078,2655.0,2653.3,0.19197914]
[1739385227873,1.1659,2654.9,2654.5,3.2078]
[1739385228169,1.1659,2654.9,2654.8,4.10789846]
[1739385229073,0.00565654,2655.1,2654.8,6.56238846]
[1739385229275,0.00565654,2655.1,2655.0,0.75326]
[1739385229771,0.00565654,2655.1,2655.0,4.64905545]
[1739385232780,0.5624,2655.8,2655.7,0.75306]
[1739385233171,0.5849,2656.1,2655.9,0.75299]
[1739385233365,0.5849,2656.1,2656.0,0.75297]
[1739385233578,3.2078,2656.2,2656.1,0.75294]
[1739385233874,3.2078,2656.2,2656.0,0.75296]
[1739385234077,3.2078,2656.2,2656.0,0.75297]
[1739385234275,3.2078,2656.2,2656.1,0.75294]
[1739385235975,0.75296,2656.1,2655.7,0.75304]
[1739385236277,3.2078,2656.2,2655.7,0.75304]
[1739385236478,1.32598,2656.0,2655.7,0.75304]
[1739385237175,0.75302,2655.9,2655.6,7.85666545]
[1739385237369,1.32599,2656.0,2655.7,0.75305]
[1739385237570,1.795,2655.9,2655.7,0.75305]
[1739385237969,2.548,2655.9,2655.7,0.75305]
[1739385238175,2.548,2655.9,2655.3,7.10359545]
[1739385238176,5.0028,2655.9,2655.3,7.10359545]
[1739385238476,0.75318,2655.3,2655.1,0.75322]
[1739385238679,2.4001,2655.2,2655.1,0.75322]
[1739385239071,2.4001,2655.2,2655.0,7.10359545]
[1739385239477,2.4001,2655.2,2655.1,0.75323]
[1739385240077,0.6051,2655.2,2655.1,0.75323]
[1739385240274,1.795,2655.2,2655.1,0.75323]
[1739385240474,1.35818,2655.7,2655.4,0.75312]
[1739385240669,1.795,2655.6,2655.5,0.75311]
[1739385240982,5.0028,2655.9,2655.3,3.89579545]
[1739385241274,1.795,2655.9,2655.8,0.75303]
[1739385241475,1.795,2655.9,2655.7,3.89579545]
[1739385241683,1.795,2655.9,2655.8,0.75303]
[1739385243078,3.7678,2656.2,2655.7,7.10359545]
[1739385243274,3.7678,2656.2,2656.1,0.75294]
[1739385243581,4.52072,2656.2,2656.0,0.75296]
[1739385243977,3.7678,2656.2,2655.7,7.10359545]
[1739385244179,0.75303,2655.8,2655.7,3.2078]
[1739385244584,0.75303,2655.8,2655.2,0.6048]
[1739385244585,1.795,2655.8,2655.3,3.2078]
[1739385244881,0.75311,2655.6,2655.4,0.75313]
[1739385245081,1.795,2655.8,2655.3,3.2078]
[1739385245282,1.795,2655.8,2655.3,3.96095]
[1739385245486,0.75319,2655.3,2655.1,0.75322]
[1739385245783,1.32221,2655.2,2655.0,3.96104]
[1739385245984,0.75316,2655.4,2655.2,0.7532]
[1739385246184,2.54813,2655.5,2655.3,0.75316]
[1739385246579,2.54812,2655.5,2655.1,3.89579545]
[1739385246780,0.75316,2655.4,2655.2,0.75319]
[1739385247179,1.795,2655.5,2655.0,3.2078]
[1739385247380,0.75323,2655.1,2655.0,3.2078]
[1739385248079,0.5755,2655.2,2654.7,1.88336]
[1739385248280,5.0028,2655.3,2655.1,0.75323]
[1739385248474,0.75321,2655.2,2655.0,0.75325]
[1739385248672,0.75324,2655.1,2654.9,0.75327]
[1739385249076,0.75325,2655.1,2654.8,4.64908545]
[1739385249476,5.0028,2655.3,2654.8,4.64908545]
[1739385249679,0.75327,2655.0,2654.8,4.64908545]
[1739385249884,5.0028,2655.3,2654.6,3.21345654]
[1739385250085,0.75331,2654.8,2654.6,3.96680654]
[1739385250287,0.00565654,2655.2,2654.6,3.21345654]
[1739385250483,0.75334,2654.7,2654.6,3.21345654]
[1739385251879,0.75334,2654.7,2654.6,0.00565654]
[1739385252278,0.75334,2654.7,2654.3,3.2078]
[1739385252279,0.75343,2654.4,2654.3,3.2078]
[1739385253185,5.6763,2654.7,2653.9,7.10359545]
[1739385253485,5.6763,2654.7,2654.1,0.75915654]
[1739385253691,0.75345,2654.4,2654.2,1.22469238]
[1739385253979,0.75348,2654.2,2654.1,0.75915654]
[1739385254179,0.75348,2654.2,2654.1,0.47687208]
[1739385254581,0.75348,2654.2,2654.1,0.47688894]
[1739385256088,1.795,2654.3,2654.1,1.23039894]
[1739385256286,2.54847,2654.3,2654.2,0.4712324]
[1739385256590,0.75348,2654.2,2654.1,0.00565654]
[1739385256785,0.75348,2654.2,2654.1,0.4768868]
[1739385257291,0.75348,2654.2,2654.1,2.40890406]
[1739385257484,0.75348,2654.2,2654.1,1.81987417]
[1739385257685,0.75348,2654.2,2654.1,2.57337417]
[1739385258391,0.75348,2654.2,2654.1,1.8194159]
[1739385258585,0.75348,2654.2,2654.1,0.4768868]
[1739385259089,1.34508,2654.2,2654.1,0.00565654]
[1739385259285,4.55288,2654.2,2654.1,0.00565654]
[1739385265996,9.7994,2654.2,2653.5,1.34376]
[1739385266291,0.75365,2653.6,2653.5,0.5901]
[1739385266499,5.09194,2653.6,2653.2,0.75375]
[1739385266699,5.09194,2653.6,2653.1,0.75378]
[1739385266700,0.75379,2653.2,2653.1,0.75378]
[1739385267495,2.54879,2653.2,2653.1,0.75378]
[1739385267694,1.795,2653.2,2653.1,0.75378]
[1739385267900,0.7538,2653.1,2653.0,0.94732]
[1739385268290,0.7538,2653.1,2653.0,0.19351]
[1739385271399,0.75378,2653.2,2653.0,0.19351]
[1739385271607,2.54878,2653.2,2653.1,0.75379]
[1739385272299,1.795,2653.2,2653.1,0.75379]
[1739385272506,2.54877,2653.2,2653.1,1.34229]
[1739385272704,2.54877,2653.2,2653.1,0.5885]
[1739385273799,0.7538,2653.1,2653.0,0.19351]
[1739385274006,1.334,2653.1,2653.0,0.19351]
[1739385276807,0.00565654,2653.4,2653.0,0.19351]
[1739385277009,0.00565654,2653.4,2653.0,0.94731]
[1739385277010,0.7538,2653.1,2653.0,0.94731]
[1739385277210,0.7538,2653.1,2653.0,1.54321]
[1739385278114,0.7538,2653.1,2653.0,0.19351]
[1739385280410,0.7538,2653.1,2653.0,1.4187653]
[1739385280411,2.5488,2653.1,2653.0,1.4187653]
[1739385280907,2.5488,2653.1,2653.0,0.66494239]
[1739385281211,2.5488,2653.1,2653.0,0.19351]
[1739385281709,2.5488,2653.1,2653.0,0.66495764]
[1739385283108,2.5488,2653.1,2653.0,0.66141011]
[1739385283704,3.2078,2653.3,2653.0,0.66141011]
[1739385283904,2.54879,2653.2,2653.1,1.05188347]
[1739385284906,2.54879,2653.2,2653.1,0.5839]
[1739385285407,1.795,2653.2,2653.0,0.19351]
[1739385285609,0.7538,2653.1,2653.0,0.19351]
[1739385287010,0.7538,2653.1,2653.0,0.66179502]
[1739385287316,0.7538,2653.1,2653.0,0.19351]
[1739385287813,0.7538,2653.1,2653.0,0.66194748]
[1739385288405,2.5488,2653.1,2653.0,0.66194748]
[1739385290208,2.5488,2653.1,2653.0,2.16576636]
[1739385290707,0.75375,2653.3,2653.2,0.75375]
[1739385290913,2.54875,2653.3,2653.2,1.97218636]
[1739385291314,1.795,2653.3,2653.2,1.21895946]
[1739385291516,1.795,2653.3,2653.2,1.80821896]
[1739385291517,2.54874,2653.3,2653.2,1.80821896]
[1739385291809,2.54874,2653.3,2653.2,0.5892595]
[1739385292209,0.7538,2653.1,2653.0,0.19351]
[1739385292414,0.7538,2653.1,2653.0,0.64785943]
[1739385293815,0.7538,2653.1,2653.0,1.40167943]
[1739385294020,0.7538,2653.1,2653.0,0.64785943]
[1739385294822,0.7538,2653.1,2653.0,1.40167943]
[1739385295513,0.7538,2653.1,2653.0,2.12582456]
[1739385296116,5.75656,2653.3,2653.2,0.75377]
[1739385296317,5.75656,2653.3,2653.2,0.45434943]
[1739385296508,5.75656,2653.3,2653.2,1.1788235]
[1739385296820,2.54876,2653.3,2653.2,1.1788235]
[1739385297119,2.54876,2653.3,2653.2,0.45434943]
[1739385297514,2.54874,2653.3,2653.2,0.45285314]
[1739385297714,1.795,2653.3,2653.0,0.94732]
[1739385297915,0.7538,2653.1,2653.0,0.94732]
[1739385298222,0.7538,2653.1,2653.0,1.38550674]
[1739385298420,0.7538,2653.1,2653.0,0.63169674]
[1739385298722,0.7538,2653.1,2653.0,0.19351]
[1739385299225,0.7538,2653.1,2653.0,0.62397058]
[1739385299417,0.7538,2653.1,2653.0,0.19351]
[1739385299618,0.7538,2653.1,2653.0,0.94733]
[1739385300520,0.7538,2653.1,2653.0,0.19351]
[1739385302920,1.3306,2653.1,2653.0,0.19351]
[1739385303524,0.5768,2653.1,2652.3,3.2078]
[1739385303728,0.75398,2652.5,2652.3,0.75401]